[Event "Titled Tuesday Blitz August 22 Late 2023"]
[White "Ganiev, Roman"]
[Black "Troff, Kayden"]
[WhiteFideId "4131452"]
[BlackFideId "2047896"]
[WhiteElo "2571"]
[BlackElo "2765"]
[Result "1-0"]
[Round "4"]
[TimeControl "180+1"]
[Date "2023.08.22"]
[WhiteClock "0:00:20"]
[BlackClock "0:00:00"]
[Board "31"]

1. e4 {[%clk 0:03:00]}  c5 {[%clk 0:02:58]} 2. Nf3 {[%clk 0:02:56]}  g6 {[%clk 0:02:57]} 3. d4 {[%clk 0:02:56]}  cxd4 {[%clk 0:02:58]} 4. Nxd4 {[%clk 0:02:57]}  Bg7 {[%clk 0:02:58]} 5. c4 {[%clk 0:02:57]}  Qb6 {[%clk 0:02:55]} 6. Nb3 {[%clk 0:02:44]}  a5 {[%clk 0:02:55]} 7. Nc3 {[%clk 0:02:26]}  a4 {[%clk 0:02:55]} 8. Be3 {[%clk 0:02:06]}  Qb4 {[%clk 0:02:53]} 9. Bc5 {[%clk 0:01:55]}  Bxc3+ {[%clk 0:02:52]} 10. bxc3 {[%clk 0:01:56]}  Qxc3+ {[%clk 0:02:53]} 11. Nd2 {[%clk 0:01:57]}  Nf6 {[%clk 0:02:35]} 12. Rc1 {[%clk 0:01:43]}  Qe5 {[%clk 0:02:31]} 13. Be3 {[%clk 0:01:42]}  Nxe4 {[%clk 0:02:29]} 14. Nf3 {[%clk 0:01:38]}  Qa5+ {[%clk 0:02:28]} 15. Nd2 {[%clk 0:01:31]}  Nc6 {[%clk 0:01:52]} 16. Bd3 {[%clk 0:01:23]}  Nxd2 {[%clk 0:01:51]} 17. Bxd2 {[%clk 0:01:24]}  Qe5+ {[%clk 0:01:50]} 18. Be3 {[%clk 0:01:24]}  O-O {[%clk 0:01:33]} 19. O-O {[%clk 0:01:23]}  d6 {[%clk 0:01:33]} 20. Re1 {[%clk 0:01:21]}  Qf6 {[%clk 0:01:11]} 21. Rb1 {[%clk 0:00:57]}  Ne5 {[%clk 0:01:04]} 22. Be2 {[%clk 0:00:55]}  Bd7 {[%clk 0:00:53]} 23. f4 {[%clk 0:00:55]}  Nc6 {[%clk 0:00:44]} 24. Rxb7 {[%clk 0:00:54]}  Be6 {[%clk 0:00:41]} 25. Bf3 {[%clk 0:00:44]}  Na5 {[%clk 0:00:40]} 26. Bd4 {[%clk 0:00:37]}  Qxf4 {[%clk 0:00:31]} 27. Rxe7 {[%clk 0:00:36]}  Rfe8 {[%clk 0:00:16]} 28. R1xe6 {[%clk 0:00:23]}  fxe6 {[%clk 0:00:16]} 29. Rg7+ {[%clk 0:00:24]}  Kf8 {[%clk 0:00:16]} 30. Bxa8 {[%clk 0:00:24]}  e5 {[%clk 0:00:15]} 31. Rxh7 {[%clk 0:00:19]}  Qxd4+ {[%clk 0:00:14]} 32. Qxd4 {[%clk 0:00:19]}  exd4 {[%clk 0:00:15]} 33. Rh8+ {[%clk 0:00:18]}  Ke7 {[%clk 0:00:15]} 34. Rxe8+ {[%clk 0:00:19]}  Kxe8 {[%clk 0:00:16]} 35. Bd5 {[%clk 0:00:19]}  Kd7 {[%clk 0:00:15]} 36. Kf2 {[%clk 0:00:19]}  Nc6 {[%clk 0:00:16]} 37. Bxc6+ {[%clk 0:00:17]}  Kxc6 {[%clk 0:00:16]} 38. Ke2 {[%clk 0:00:18]}  Kc5 {[%clk 0:00:08]} 39. Kd3 {[%clk 0:00:18]}  Kb4 {[%clk 0:00:07]} 40. Kxd4 {[%clk 0:00:17]}  Ka3 {[%clk 0:00:08]} 41. Kc3 {[%clk 0:00:17]}  Kxa2 {[%clk 0:00:09]} 42. Kc2 {[%clk 0:00:18]}  Ka3 {[%clk 0:00:09]} 43. g4 {[%clk 0:00:17]}  Kb4 {[%clk 0:00:09]} 44. h4 {[%clk 0:00:17]}  Kxc4 {[%clk 0:00:09]} 45. h5 {[%clk 0:00:18]}  d5 {[%clk 0:00:05]} 46. hxg6 {[%clk 0:00:17]}  d4 {[%clk 0:00:05]} 47. g7 {[%clk 0:00:18]}  d3+ {[%clk 0:00:06]} 48. Kd2 {[%clk 0:00:18]}  Kd4 {[%clk 0:00:03]} 49. g8=Q {[%clk 0:00:19]}  Ke4 {[%clk 0:00:02]} 50. Qa2 {[%clk 0:00:19]}  Kf4 {[%clk 0:00:00]} 51. Qxa4+ {[%clk 0:00:20]} 1-0


[Site "https://www.chess.com"]

[Event "Titled Tuesday Blitz August 22 Late 2023"]
[White "Deac, Bogdan-Daniel"]
[Black "Ribeiro, Matheus Mendes Domingues"]
[WhiteFideId "1226380"]
[BlackFideId "324226923"]
[WhiteElo "3045"]
[BlackElo "2595"]
[Result "1-0"]
[Round "4"]
[TimeControl "180+1"]
[Date "2023.08.22"]
[WhiteClock "0:01:53"]
[BlackClock "0:00:47"]
[Board "34"]

1. b3 {[%clk 0:03:00]}  d5 {[%clk 0:02:59]} 2. Bb2 {[%clk 0:02:59]}  e6 {[%clk 0:03:00]} 3. e3 {[%clk 0:02:59]}  Nf6 {[%clk 0:03:01]} 4. c4 {[%clk 0:03:00]}  c5 {[%clk 0:02:58]} 5. cxd5 {[%clk 0:02:56]}  exd5 {[%clk 0:02:58]} 6. Nf3 {[%clk 0:02:56]}  Nc6 {[%clk 0:02:56]} 7. Bb5 {[%clk 0:02:56]}  Bd6 {[%clk 0:02:55]} 8. O-O {[%clk 0:02:56]}  O-O {[%clk 0:02:55]} 9. Bxc6 {[%clk 0:02:56]}  bxc6 {[%clk 0:02:56]} 10. h3 {[%clk 0:02:57]}  Qe7 {[%clk 0:02:42]} 11. d4 {[%clk 0:02:50]}  cxd4 {[%clk 0:02:38]} 12. Qxd4 {[%clk 0:02:50]}  Bd7 {[%clk 0:02:21]} 13. Rc1 {[%clk 0:02:38]}  Qe4 {[%clk 0:02:12]} 14. Nbd2 {[%clk 0:02:26]}  Qxd4 {[%clk 0:02:12]} 15. Bxd4 {[%clk 0:02:26]}  a5 {[%clk 0:02:03]} 16. Bc5 {[%clk 0:02:23]}  Bxc5 {[%clk 0:01:57]} 17. Rxc5 {[%clk 0:02:24]}  a4 {[%clk 0:01:55]} 18. b4 {[%clk 0:02:21]}  a3 {[%clk 0:01:40]} 19. Ne5 {[%clk 0:02:20]}  Rfb8 {[%clk 0:01:37]} 20. Rb1 {[%clk 0:02:17]}  Ra4 {[%clk 0:01:32]} 21. Nxc6 {[%clk 0:01:59]}  Bxc6 {[%clk 0:01:10]} 22. Rxc6 {[%clk 0:01:58]}  g6 {[%clk 0:00:51]} 23. Rxf6 {[%clk 0:01:56]}  Raxb4 {[%clk 0:00:51]} 24. Rxb4 {[%clk 0:01:53]}  Rxb4 {[%clk 0:00:52]} 25. Nb3 {[%clk 0:01:53]}  Rc4 {[%clk 0:00:47]} 26. Ra6 {[%clk 0:01:53]} 1-0


[Site "https://www.chess.com"]

[Event "Titled Tuesday Blitz August 22 Late 2023"]
[White "Postlmayer, Jakob"]
[Black "Bortnyk, Olexandr"]
[WhiteFideId "1643622"]
[BlackFideId "14120828"]
[WhiteElo "2592"]
[BlackElo "3029"]
[Result "0-1"]
[Round "4"]
[TimeControl "180+1"]
[Date "2023.08.22"]
[WhiteClock "0:00:00"]
[BlackClock "0:00:39"]
[Board "35"]

1. e4 {[%clk 0:02:37]}  Nf6 {[%clk 0:02:59]} 2. e5 {[%clk 0:02:36]}  Nd5 {[%clk 0:02:58]} 3. d4 {[%clk 0:02:35]}  d6 {[%clk 0:02:57]} 4. c4 {[%clk 0:02:36]}  Nb6 {[%clk 0:02:57]} 5. exd6 {[%clk 0:02:36]}  exd6 {[%clk 0:02:58]} 6. Nc3 {[%clk 0:02:36]}  Be7 {[%clk 0:02:58]} 7. Bd3 {[%clk 0:02:32]}  O-O {[%clk 0:02:58]} 8. Nge2 {[%clk 0:02:31]}  c6 {[%clk 0:02:56]} 9. h3 {[%clk 0:02:28]}  Na6 {[%clk 0:02:56]} 10. b3 {[%clk 0:02:25]}  d5 {[%clk 0:02:56]} 11. c5 {[%clk 0:02:23]}  Nd7 {[%clk 0:02:55]} 12. O-O {[%clk 0:02:16]}  Nc7 {[%clk 0:02:54]} 13. Nf4 {[%clk 0:02:06]}  g6 {[%clk 0:02:51]} 14. Be3 {[%clk 0:02:04]}  Bf6 {[%clk 0:02:50]} 15. Qd2 {[%clk 0:02:00]}  Nxc5 {[%clk 0:02:46]} 16. dxc5 {[%clk 0:01:54]}  d4 {[%clk 0:02:47]} 17. Ne4 {[%clk 0:01:52]}  dxe3 {[%clk 0:02:43]} 18. Nxf6+ {[%clk 0:01:51]}  Qxf6 {[%clk 0:02:44]} 19. Qxe3 {[%clk 0:01:43]}  Re8 {[%clk 0:02:42]} 20. Qg3 {[%clk 0:01:43]}  Ne6 {[%clk 0:02:39]} 21. Nxe6 {[%clk 0:01:42]}  Bxe6 {[%clk 0:02:40]} 22. Rac1 {[%clk 0:01:38]}  Rad8 {[%clk 0:02:38]} 23. Rfd1 {[%clk 0:01:27]}  h5 {[%clk 0:02:26]} 24. Bf1 {[%clk 0:01:11]}  Bd5 {[%clk 0:02:24]} 25. Qc3 {[%clk 0:00:58]}  Qg5 {[%clk 0:02:16]} 26. Qd2 {[%clk 0:00:57]}  Qf6 {[%clk 0:02:14]} 27. Qc3 {[%clk 0:00:55]}  Re5 {[%clk 0:02:14]} 28. Re1 {[%clk 0:00:50]}  Rde8 {[%clk 0:02:11]} 29. Rxe5 {[%clk 0:00:49]}  Qxe5 {[%clk 0:02:12]} 30. Qxe5 {[%clk 0:00:47]}  Rxe5 {[%clk 0:02:12]} 31. f3 {[%clk 0:00:41]}  h4 {[%clk 0:02:10]} 32. Kf2 {[%clk 0:00:41]}  g5 {[%clk 0:02:10]} 33. Bc4 {[%clk 0:00:33]}  a5 {[%clk 0:02:05]} 34. a3 {[%clk 0:00:30]}  Kg7 {[%clk 0:02:03]} 35. Bxd5 {[%clk 0:00:22]}  Rxd5 {[%clk 0:02:04]} 36. Ke3 {[%clk 0:00:22]}  f5 {[%clk 0:02:00]} 37. Rc4 {[%clk 0:00:20]}  f4+ {[%clk 0:01:43]} 38. Ke2 {[%clk 0:00:20]}  Kf6 {[%clk 0:01:43]} 39. b4 {[%clk 0:00:20]}  axb4 {[%clk 0:01:33]} 40. Rxb4 {[%clk 0:00:19]}  Rd7 {[%clk 0:01:28]} 41. Re4 {[%clk 0:00:19]}  Kf5 {[%clk 0:01:15]} 42. a4 {[%clk 0:00:18]}  Rd5 {[%clk 0:01:10]} 43. Rb4 {[%clk 0:00:18]}  Rd7 {[%clk 0:00:50]} 44. Re4 {[%clk 0:00:18]}  Kf6 {[%clk 0:00:51]} 45. Kf1 {[%clk 0:00:10]}  Rd1+ {[%clk 0:00:48]} 46. Kf2 {[%clk 0:00:09]}  Rb1 {[%clk 0:00:45]} 47. Rd4 {[%clk 0:00:07]}  Ke5 {[%clk 0:00:44]} 48. Rd7 {[%clk 0:00:07]}  Rb2+ {[%clk 0:00:43]} 49. Kf1 {[%clk 0:00:07]}  Rb4 {[%clk 0:00:43]} 50. Rg7 {[%clk 0:00:04]}  Kf6 {[%clk 0:00:43]} 51. Rc7 {[%clk 0:00:04]}  Rxa4 {[%clk 0:00:43]} 52. Rxb7 {[%clk 0:00:04]}  Rc4 {[%clk 0:00:44]} 53. Rb6 {[%clk 0:00:04]}  Rxc5 {[%clk 0:00:44]} 54. Ke2 {[%clk 0:00:05]}  Rc2+ {[%clk 0:00:43]} 55. Kf1 {[%clk 0:00:05]}  Ke5 {[%clk 0:00:43]} 56. Rb8 {[%clk 0:00:05]}  Rc5 {[%clk 0:00:40]} 57. Rg8 {[%clk 0:00:05]}  Kd4 {[%clk 0:00:41]} 58. Ke2 {[%clk 0:00:05]}  Kc3 {[%clk 0:00:40]} 59. Rc8 {[%clk 0:00:03]}  Re5+ {[%clk 0:00:40]} 60. Kf2 {[%clk 0:00:03]}  c5 {[%clk 0:00:41]} 61. Rc7 {[%clk 0:00:03]}  c4 {[%clk 0:00:40]} 62. Rc8 {[%clk 0:00:03]}  Kd3 {[%clk 0:00:40]} 63. Rd8+ {[%clk 0:00:04]}  Kc2 {[%clk 0:00:40]} 64. Kf1 {[%clk 0:00:04]}  c3 {[%clk 0:00:41]} 65. Kg1 {[%clk 0:00:04]}  Rc5 {[%clk 0:00:40]} 66. Ra8 {[%clk 0:00:03]}  Kd2 {[%clk 0:00:39]} 67. Rd8+ {[%clk 0:00:03]}  Kc1 {[%clk 0:00:38]} 68. Kf2 {[%clk 0:00:03]}  c2 {[%clk 0:00:39]} 69. Ke2 {[%clk 0:00:04]}  Kb2 {[%clk 0:00:39]} 70. Rb8+ {[%clk 0:00:00]}  Kc3 {[%clk 0:00:39]} 0-1


[Site "https://www.chess.com"]

[Event "Titled Tuesday Blitz August 22 Late 2023"]
[White "Andreikin, Dmitry"]
[Black "Dobrikov, Marco"]
[WhiteFideId "4158814"]
[BlackFideId "12950378"]
[WhiteElo "2981"]
[BlackElo "2588"]
[Result "1-0"]
[Round "4"]
[TimeControl "180+1"]
[Date "2023.08.22"]
[WhiteClock "0:00:44"]
[BlackClock "0:00:57"]
[Board "37"]

1. c4 {[%clk 0:03:00]}  c5 {[%clk 0:02:58]} 2. Nf3 {[%clk 0:02:57]}  Nc6 {[%clk 0:02:58]} 3. Nc3 {[%clk 0:02:56]}  Nf6 {[%clk 0:02:58]} 4. e3 {[%clk 0:02:55]}  e6 {[%clk 0:02:57]} 5. d4 {[%clk 0:02:52]}  cxd4 {[%clk 0:02:57]} 6. exd4 {[%clk 0:02:52]}  d5 {[%clk 0:02:56]} 7. cxd5 {[%clk 0:02:52]}  Nxd5 {[%clk 0:02:51]} 8. Bc4 {[%clk 0:02:50]}  Nxc3 {[%clk 0:02:44]} 9. bxc3 {[%clk 0:02:49]}  Be7 {[%clk 0:02:44]} 10. O-O {[%clk 0:02:49]}  O-O {[%clk 0:02:44]} 11. Re1 {[%clk 0:02:47]}  b6 {[%clk 0:02:44]} 12. h4 {[%clk 0:02:39]}  Bb7 {[%clk 0:02:42]} 13. Ng5 {[%clk 0:02:30]}  Bxg5 {[%clk 0:02:38]} 14. Bxg5 {[%clk 0:02:23]}  Qd7 {[%clk 0:02:36]} 15. Qh5 {[%clk 0:02:19]}  Na5 {[%clk 0:02:24]} 16. Bf6 {[%clk 0:01:55]}  gxf6 {[%clk 0:02:04]} 17. Bd3 {[%clk 0:01:54]}  f5 {[%clk 0:01:42]} 18. Qg5+ {[%clk 0:01:53]}  Kh8 {[%clk 0:01:35]} 19. Qf6+ {[%clk 0:01:54]}  Kg8 {[%clk 0:01:36]} 20. Re3 {[%clk 0:01:54]}  Rfc8 {[%clk 0:01:32]} 21. h5 {[%clk 0:01:11]}  Kf8 {[%clk 0:01:22]} 22. Bxf5 {[%clk 0:01:07]}  Qd8 {[%clk 0:01:16]} 23. Qh6+ {[%clk 0:00:56]}  Ke7 {[%clk 0:01:16]} 24. Bxe6 {[%clk 0:00:55]}  fxe6 {[%clk 0:01:12]} 25. Qxe6+ {[%clk 0:00:45]}  Kf8 {[%clk 0:01:12]} 26. Rg3 {[%clk 0:00:44]}  Bd5 {[%clk 0:00:57]} 27. Rg8# {[%clk 0:00:44]} 1-0


[Site "https://www.chess.com"]

[Event "Titled Tuesday Blitz August 22 Late 2023"]
[White "Santos Latasa, Jaime"]
[Black "Martinez Reyes, Pedro Ramon"]
[WhiteFideId "2293307"]
[BlackFideId "3901807"]
[WhiteElo "2968"]
[BlackElo "2588"]
[Result "1/2-1/2"]
[Round "4"]
[TimeControl "180+1"]
[Date "2023.08.22"]
[WhiteClock "0:00:43"]
[BlackClock "0:00:03"]
[Board "38"]

1. Nf3 {[%clk 0:03:00]}  Nf6 {[%clk 0:02:59]} 2. c4 {[%clk 0:03:01]}  e6 {[%clk 0:02:57]} 3. Nc3 {[%clk 0:03:01]}  d5 {[%clk 0:02:57]} 4. e3 {[%clk 0:03:01]}  Be7 {[%clk 0:02:57]} 5. b3 {[%clk 0:03:01]}  O-O {[%clk 0:02:57]} 6. Bb2 {[%clk 0:03:01]}  b6 {[%clk 0:02:56]} 7. cxd5 {[%clk 0:02:59]}  Nxd5 {[%clk 0:02:56]} 8. Nxd5 {[%clk 0:02:59]}  Qxd5 {[%clk 0:02:53]} 9. Qc2 {[%clk 0:02:56]}  Bb7 {[%clk 0:02:42]} 10. Qxc7 {[%clk 0:02:51]}  Bd6 {[%clk 0:02:38]} 11. Qc3 {[%clk 0:02:51]}  f6 {[%clk 0:02:28]} 12. Bc4 {[%clk 0:02:50]}  Qe4 {[%clk 0:02:25]} 13. Qd4 {[%clk 0:02:49]}  Qxd4 {[%clk 0:02:15]} 14. Nxd4 {[%clk 0:02:40]}  Bxg2 {[%clk 0:02:14]} 15. Rg1 {[%clk 0:02:40]}  Bd5 {[%clk 0:02:14]} 16. Nxe6 {[%clk 0:02:32]}  Bxc4 {[%clk 0:02:11]} 17. Rxg7+ {[%clk 0:02:09]}  Kh8 {[%clk 0:02:11]} 18. bxc4 {[%clk 0:02:10]}  Re8 {[%clk 0:02:12]} 19. Nc7 {[%clk 0:02:02]}  Rf8 {[%clk 0:01:44]} 20. Ne6 {[%clk 0:02:02]}  Re8 {[%clk 0:01:43]} 21. Bxf6 {[%clk 0:02:02]}  Rxe6 {[%clk 0:01:43]} 22. Rg6+ {[%clk 0:02:00]}  Rxf6 {[%clk 0:01:43]} 23. Rxf6 {[%clk 0:02:00]}  Be5 {[%clk 0:01:43]} 24. Rf8+ {[%clk 0:01:58]}  Kg7 {[%clk 0:01:43]} 25. Rxb8 {[%clk 0:01:57]}  Rxb8 {[%clk 0:01:42]} 26. d4 {[%clk 0:01:58]}  Bxh2 {[%clk 0:01:42]} 27. Ke2 {[%clk 0:01:57]}  Bd6 {[%clk 0:01:42]} 28. a4 {[%clk 0:01:57]}  h5 {[%clk 0:01:39]} 29. f4 {[%clk 0:01:56]}  h4 {[%clk 0:01:39]} 30. Kf3 {[%clk 0:01:56]}  Rc8 {[%clk 0:01:37]} 31. Rc1 {[%clk 0:01:55]}  Ba3 {[%clk 0:01:29]} 32. Rc2 {[%clk 0:01:53]}  Kf6 {[%clk 0:01:28]} 33. e4 {[%clk 0:01:51]}  Rg8 {[%clk 0:01:28]} 34. f5 {[%clk 0:01:39]}  Rg1 {[%clk 0:01:24]} 35. Rf2 {[%clk 0:01:34]}  Rg3+ {[%clk 0:01:05]} 36. Ke2 {[%clk 0:01:33]}  h3 {[%clk 0:01:06]} 37. e5+ {[%clk 0:01:32]}  Kg5 {[%clk 0:01:06]} 38. f6 {[%clk 0:01:31]}  Rg2 {[%clk 0:00:57]} 39. Rxg2+ {[%clk 0:01:24]}  hxg2 {[%clk 0:00:58]} 40. Kf2 {[%clk 0:01:24]}  Kg6 {[%clk 0:00:58]} 41. Kxg2 {[%clk 0:01:23]}  Bb2 {[%clk 0:00:59]} 42. Kf3 {[%clk 0:01:24]}  Bxd4 {[%clk 0:00:59]} 43. Ke4 {[%clk 0:01:24]}  Bb2 {[%clk 0:00:57]} 44. Kd5 {[%clk 0:01:25]}  Kf7 {[%clk 0:00:58]} 45. Kd6 {[%clk 0:01:24]}  Ba3+ {[%clk 0:00:57]} 46. Kc6 {[%clk 0:01:15]}  Ke6 {[%clk 0:00:37]} 47. Kb7 {[%clk 0:01:13]}  Bc5 {[%clk 0:00:37]} 48. Kc6 {[%clk 0:01:04]}  a5 {[%clk 0:00:35]} 49. Kb5 {[%clk 0:01:00]}  Kxe5 {[%clk 0:00:20]} 50. f7 {[%clk 0:01:00]}  Kd4 {[%clk 0:00:21]} 51. f8=Q {[%clk 0:00:48]}  Bxf8 {[%clk 0:00:21]} 52. Kxb6 {[%clk 0:00:49]}  Bb4 {[%clk 0:00:20]} 53. Kb5 {[%clk 0:00:49]}  Ke5 {[%clk 0:00:16]} 54. c5 {[%clk 0:00:49]}  Ke6 {[%clk 0:00:16]} 55. c6 {[%clk 0:00:48]}  Bd6 {[%clk 0:00:02]} 56. Kxa5 {[%clk 0:00:45]}  Bc7+ {[%clk 0:00:02]} 57. Ka6 {[%clk 0:00:43]}  Kd6 {[%clk 0:00:03]} 58. Kb5 {[%clk 0:00:42]}  Kd5 {[%clk 0:00:03]} 59. a5 {[%clk 0:00:42]}  Bxa5 {[%clk 0:00:03]} 60. Kxa5 {[%clk 0:00:43]}  Kxc6 {[%clk 0:00:03]} 1/2-1/2


[Site "https://www.chess.com"]

[Event "Titled Tuesday Blitz August 22 Late 2023"]
[White "Rosen, Eric"]
[Black "Harikrishna, Pentala"]
[WhiteFideId "2032562"]
[BlackFideId "5007003"]
[WhiteElo "2585"]
[BlackElo "2958"]
[Result "0-1"]
[Round "4"]
[TimeControl "180+1"]
[Date "2023.08.22"]
[WhiteClock "0:00:01"]
[BlackClock "0:00:07"]
[Board "39"]

1. d4 {[%clk 0:03:00]}  Nf6 {[%clk 0:02:59]} 2. Bf4 {[%clk 0:02:58]}  d5 {[%clk 0:02:58]} 3. e3 {[%clk 0:02:58]}  Bf5 {[%clk 0:02:58]} 4. c4 {[%clk 0:02:50]}  e6 {[%clk 0:02:57]} 5. a3 {[%clk 0:02:48]}  c6 {[%clk 0:02:53]} 6. Nc3 {[%clk 0:02:38]}  Bd6 {[%clk 0:02:52]} 7. Bg3 {[%clk 0:02:37]}  O-O {[%clk 0:02:50]} 8. Nf3 {[%clk 0:02:38]}  h6 {[%clk 0:02:49]} 9. Bd3 {[%clk 0:02:36]}  dxc4 {[%clk 0:02:42]} 10. Bxc4 {[%clk 0:02:36]}  Bxg3 {[%clk 0:02:42]} 11. hxg3 {[%clk 0:02:36]}  Nbd7 {[%clk 0:02:43]} 12. O-O {[%clk 0:02:35]}  c5 {[%clk 0:02:42]} 13. Ba2 {[%clk 0:02:27]}  Bg4 {[%clk 0:02:35]} 14. Rc1 {[%clk 0:02:21]}  Rc8 {[%clk 0:02:06]} 15. d5 {[%clk 0:02:21]}  exd5 {[%clk 0:02:00]} 16. Nxd5 {[%clk 0:02:19]}  Ne5 {[%clk 0:01:56]} 17. e4 {[%clk 0:01:18]}  c4 {[%clk 0:01:39]} 18. Qe2 {[%clk 0:01:00]}  Bxf3 {[%clk 0:01:28]} 19. gxf3 {[%clk 0:00:57]}  Nxd5 {[%clk 0:01:28]} 20. exd5 {[%clk 0:00:54]}  Qxd5 {[%clk 0:01:28]} 21. Rc3 {[%clk 0:00:51]}  b5 {[%clk 0:01:17]} 22. Bb1 {[%clk 0:00:50]}  Rcd8 {[%clk 0:01:04]} 23. Re3 {[%clk 0:00:49]}  Nc6 {[%clk 0:00:57]} 24. Be4 {[%clk 0:00:48]}  Nd4 {[%clk 0:00:55]} 25. Bxd5 {[%clk 0:00:37]}  Nxe2+ {[%clk 0:00:55]} 26. Rxe2 {[%clk 0:00:38]}  Rxd5 {[%clk 0:00:55]} 27. a4 {[%clk 0:00:20]}  b4 {[%clk 0:00:50]} 28. Rc1 {[%clk 0:00:20]}  Rc8 {[%clk 0:00:46]} 29. Re4 {[%clk 0:00:20]}  Rdc5 {[%clk 0:00:38]} 30. Kf1 {[%clk 0:00:20]}  a5 {[%clk 0:00:36]} 31. f4 {[%clk 0:00:20]}  g6 {[%clk 0:00:32]} 32. Ke2 {[%clk 0:00:20]}  Kg7 {[%clk 0:00:31]} 33. Ke3 {[%clk 0:00:20]}  h5 {[%clk 0:00:30]} 34. Re5 {[%clk 0:00:17]}  Rxe5+ {[%clk 0:00:27]} 35. fxe5 {[%clk 0:00:18]}  g5 {[%clk 0:00:26]} 36. Ke4 {[%clk 0:00:13]}  c3 {[%clk 0:00:21]} 37. bxc3 {[%clk 0:00:07]}  Rxc3 {[%clk 0:00:21]} 38. Rh1 {[%clk 0:00:06]}  Kg6 {[%clk 0:00:20]} 39. f4 {[%clk 0:00:06]}  Rc4+ {[%clk 0:00:14]} 40. Kd5 {[%clk 0:00:06]}  Rc2 {[%clk 0:00:13]} 41. Rf1 {[%clk 0:00:04]}  b3 {[%clk 0:00:08]} 42. f5+ {[%clk 0:00:04]}  Kg7 {[%clk 0:00:09]} 43. Rb1 {[%clk 0:00:04]}  b2 {[%clk 0:00:08]} 44. e6 {[%clk 0:00:02]}  Kf6 {[%clk 0:00:08]} 45. exf7 {[%clk 0:00:02]}  Kxf7 {[%clk 0:00:07]} 46. Ke5 {[%clk 0:00:02]}  Re2+ {[%clk 0:00:07]} 47. Kd4 {[%clk 0:00:02]}  Kf6 {[%clk 0:00:07]} 48. Kd3 {[%clk 0:00:02]}  Rg2 {[%clk 0:00:07]} 49. Kc4 {[%clk 0:00:02]}  h4 {[%clk 0:00:06]} 50. gxh4 {[%clk 0:00:02]}  gxh4 {[%clk 0:00:07]} 51. Kb3 {[%clk 0:00:01]}  h3 {[%clk 0:00:07]} 52. Ka2 {[%clk 0:00:02]}  h2 {[%clk 0:00:07]} 53. Rh1 {[%clk 0:00:02]}  Rg1 {[%clk 0:00:07]} 54. Rxh2 {[%clk 0:00:01]}  b1=Q+ {[%clk 0:00:07]} 55. Ka3 {[%clk 0:00:01]}  Rg3# {[%clk 0:00:07]} 0-1


[Site "https://www.chess.com"]

[Event "Titled Tuesday Blitz August 22 Late 2023"]
[White "Badelka, Olga"]
[Black "Holt, Conrad"]
[WhiteFideId "13509926"]
[BlackFideId "2034387"]
[WhiteElo "2581"]
[BlackElo "2927"]
[Result "0-1"]
[Round "4"]
[TimeControl "180+1"]
[Date "2023.08.22"]
[WhiteClock "0:00:00"]
[BlackClock "0:00:08"]
[Board "40"]

1. Nf3 {[%clk 0:03:00]}  d5 {[%clk 0:02:55]} 2. g3 {[%clk 0:02:59]}  Bg4 {[%clk 0:02:55]} 3. Bg2 {[%clk 0:02:59]}  Nd7 {[%clk 0:02:56]} 4. d4 {[%clk 0:02:53]}  e6 {[%clk 0:02:55]} 5. c4 {[%clk 0:02:49]}  c6 {[%clk 0:02:55]} 6. O-O {[%clk 0:02:41]}  Ngf6 {[%clk 0:02:54]} 7. b3 {[%clk 0:02:38]}  Bd6 {[%clk 0:02:52]} 8. Bb2 {[%clk 0:02:38]}  Qb8 {[%clk 0:02:52]} 9. Nc3 {[%clk 0:02:31]}  h6 {[%clk 0:02:43]} 10. h3 {[%clk 0:02:30]}  Bf5 {[%clk 0:02:42]} 11. Nd2 {[%clk 0:02:19]}  O-O {[%clk 0:02:29]} 12. e4 {[%clk 0:02:18]}  dxe4 {[%clk 0:02:29]} 13. Ndxe4 {[%clk 0:02:19]}  Be7 {[%clk 0:02:27]} 14. Re1 {[%clk 0:02:16]}  Rd8 {[%clk 0:02:27]} 15. Qe2 {[%clk 0:02:13]}  Qc7 {[%clk 0:02:23]} 16. Rad1 {[%clk 0:02:12]}  Nxe4 {[%clk 0:02:17]} 17. Nxe4 {[%clk 0:02:12]}  Bb4 {[%clk 0:02:17]} 18. Rf1 {[%clk 0:02:10]}  Be7 {[%clk 0:01:49]} 19. d5 {[%clk 0:02:00]}  cxd5 {[%clk 0:01:43]} 20. cxd5 {[%clk 0:02:00]}  exd5 {[%clk 0:01:37]} 21. Rxd5 {[%clk 0:01:51]}  Be6 {[%clk 0:01:34]} 22. Rdd1 {[%clk 0:01:44]}  Qa5 {[%clk 0:01:32]} 23. Bc3 {[%clk 0:01:27]}  Qa3 {[%clk 0:01:32]} 24. Rd4 {[%clk 0:00:54]}  Nb6 {[%clk 0:01:27]} 25. Rxd8+ {[%clk 0:00:42]}  Rxd8 {[%clk 0:01:26]} 26. Ba1 {[%clk 0:00:24]}  a5 {[%clk 0:01:05]} 27. f4 {[%clk 0:00:24]}  Bd5 {[%clk 0:00:16]} 28. f5 {[%clk 0:00:23]}  Bf8 {[%clk 0:00:15]} 29. f6 {[%clk 0:00:23]}  g6 {[%clk 0:00:14]} 30. h4 {[%clk 0:00:20]}  Qb4 {[%clk 0:00:13]} 31. h5 {[%clk 0:00:17]}  g5 {[%clk 0:00:12]} 32. Bc3 {[%clk 0:00:08]}  Qa3 {[%clk 0:00:11]} 33. Bd4 {[%clk 0:00:07]}  Nd7 {[%clk 0:00:11]} 34. Nc3 {[%clk 0:00:05]}  Qb4 {[%clk 0:00:10]} 35. Nxd5 {[%clk 0:00:04]}  Qxd4+ {[%clk 0:00:10]} 36. Kh1 {[%clk 0:00:05]}  Qe5 {[%clk 0:00:09]} 37. Qf3 {[%clk 0:00:03]}  Qd6 {[%clk 0:00:08]} 38. g4 {[%clk 0:00:02]}  Ne5 {[%clk 0:00:09]} 39. Qe4 {[%clk 0:00:02]}  Re8 {[%clk 0:00:09]} 40. Qf5 {[%clk 0:00:01]}  Qe6 {[%clk 0:00:08]} 41. Qxe6 {[%clk 0:00:00]}  Rxe6 {[%clk 0:00:08]} 0-1


[Site "https://www.chess.com"]